Workbook

Sheet BIAYA RENOVASI
B1: LEMBAR KERJA BIAYA RENOVASI DAPUR
B3: Kategori | C3: Item | D3: Jumlah | E3: Biaya Perkiraan | F3: Biaya Sebenarnya | G3: Total Biaya Perkiraan | H3: Total Biaya Sebenarnya
B4: Lemari | C4: Lemari bawah: Modular Standar (jumlah dalam satuan kaki) | D4: 25 | E4: Rp5.00 | G4: =Data[[#This Row],[Jumlah]]*Data[[#This Row],[Biaya Perkiraan]] -> Rp125 | H4: =Data[[#This Row],[Jumlah]]*Data[[#This Row],[Biaya Sebenarnya]] -> Rp0
B5: Lemari | C5: Lemari atas: Modular Standar (jumlah dalam satuan kaki) | D5: 25 | E5: Rp3.50 | G5: =Data[[#This Row],[Jumlah]]*Data[[#This Row],[Biaya Perkiraan]] -> Rp88 | H5: =Data[[#This Row],[Jumlah]]*Data[[#This Row],[Biaya Sebenarnya]] -> Rp0
B6: Peralatan Pembersih | C6: Mesin Pencuci Piring: Standar | D6: 1 | E6: Rp250.00 | G6: =Data[[#This Row],[Jumlah]]*Data[[#This Row],[Biaya Perkiraan]] -> Rp250 | H6: =Data[[#This Row],[Jumlah]]*Data[[#This Row],[Biaya Sebenarnya]] -> Rp0
B7: Peralatan Pembersih | C7: Pembuangan Sampah: Standar | D7: 1 | E7: Rp175.00 | G7: =Data[[#This Row],[Jumlah]]*Data[[#This Row],[Biaya Perkiraan]] -> Rp175 | H7: =Data[[#This Row],[Jumlah]]*Data[[#This Row],[Biaya Sebenarnya]] -> Rp0
B8: Peralatan Memasak | C8: Kompor oven: Slide-in Standar | D8: 1 | E8: Rp375.00 | G8: =Data[[#This Row],[Jumlah]]*Data[[#This Row],[Biaya Perkiraan]] -> Rp375 | H8: =Data[[#This Row],[Jumlah]]*Data[[#This Row],[Biaya Sebenarnya]] -> Rp0
B9: Peralatan Memasak | C9: Microwave: Standar | D9: 1 | E9: Rp300.00 | G9: =Data[[#This Row],[Jumlah]]*Data[[#This Row],[Biaya Perkiraan]] -> Rp300 | H9: =Data[[#This Row],[Jumlah]]*Data[[#This Row],[Biaya Sebenarnya]] -> Rp0
B10: Meja Dapur | C10: Permukaan padat (jumlah dalam satuan kaki) | D10: 23 | E10: Rp10.00 | G10: =Data[[#This Row],[Jumlah]]*Data[[#This Row],[Biaya Perkiraan]] -> Rp230 | H10: =Data[[#This Row],[Jumlah]]*Data[[#This Row],[Biaya Sebenarnya]] -> Rp0
B11: Pintu | C11: Interior: Kayu Pernisan | D11: 1 | E11: Rp65.00 | G11: =Data[[#This Row],[Jumlah]]*Data[[#This Row],[Biaya Perkiraan]] -> Rp65 | H11: =Data[[#This Row],[Jumlah]]*Data[[#This Row],[Biaya Sebenarnya]] -> Rp0
B12: Tambahan | C12: Tambahan: Dispenser Air Panas Standar | D12: 1 | E12: Rp120.00 | G12: =Data[[#This Row],[Jumlah]]*Data[[#This Row],[Biaya Perkiraan]] -> Rp120 | H12: =Data[[#This Row],[Jumlah]]*Data[[#This Row],[Biaya Sebenarnya]] -> Rp0
B13: Tambahan | C13: Tambahan: Wadah Sabun Cair | D13: 1 | E13: Rp40.00 | G13: =Data[[#This Row],[Jumlah]]*Data[[#This Row],[Biaya Perkiraan]] -> Rp40 | H13: =Data[[#This Row],[Jumlah]]*Data[[#This Row],[Biaya Sebenarnya]] -> Rp0
B14: Keran | C14: Keran: Tuas, Standar | D14: 1 | E14: Rp130.00 | G14: =Data[[#This Row],[Jumlah]]*Data[[#This Row],[Biaya Perkiraan]] -> Rp130 | H14: =Data[[#This Row],[Jumlah]]*Data[[#This Row],[Biaya Sebenarnya]] -> Rp0
B15: Lantai | C15: Laminate (jumlah dalam satuan kaki persegi) | D15: 165 | E15: Rp3.50 | G15: =Data[[#This Row],[Jumlah]]*Data[[#This Row],[Biaya Perkiraan]] -> Rp578 | H15: =Data[[#This Row],[Jumlah]]*Data[[#This Row],[Biaya Sebenarnya]] -> Rp0
B16: Peralatan Mencuci Pakaian | C16: Mesin cuci: Standar | D16: 1 | E16: Rp500.00 | G16: =Data[[#This Row],[Jumlah]]*Data[[#This Row],[Biaya Perkiraan]] -> Rp500 | H16: =Data[[#This Row],[Jumlah]]*Data[[#This Row],[Biaya Sebenarnya]] -> Rp0
B17: Peralatan Mencuci Pakaian | C17: Mesin Pengering Pakaian: Standar | D17: 1 | E17: Rp375.00 | G17: =Data[[#This Row],[Jumlah]]*Data[[#This Row],[Biaya Perkiraan]] -> Rp375 | H17: =Data[[#This Row],[Jumlah]]*Data[[#This Row],[Biaya Sebenarnya]] -> Rp0
B18: Pencahayaan | C18: Pencahayaan: Rumah Lampu | D18: 4 | E18: Rp35.00 | G18: =Data[[#This Row],[Jumlah]]*Data[[#This Row],[Biaya Perkiraan]] -> Rp140 | H18: =Data[[#This Row],[Jumlah]]*Data[[#This Row],[Biaya Sebenarnya]] -> Rp0
B19: Kulkas | C19: Kulkas: Biasa, Desain Mewah | D19: 1 | E19: Rp1,200.00 | G19: =Data[[#This Row],[Jumlah]]*Data[[#This Row],[Biaya Perkiraan]] -> Rp1,200 | H19: =Data[[#This Row],[Jumlah]]*Data[[#This Row],[Biaya Sebenarnya]] -> Rp0
B20: Bak Cuci | C20: Dua Lubang, Baja Tahan Karat, Desain Mewah | D20: 1 | E20: Rp125.00 | G20: =Data[[#This Row],[Jumlah]]*Data[[#This Row],[Biaya Perkiraan]] -> Rp125 | H20: =Data[[#This Row],[Jumlah]]*Data[[#This Row],[Biaya Sebenarnya]] -> Rp0
B21: Ventilasi | C21: Penghisap asap: Saluran Standar | D21: 1 | E21: Rp180.00 | G21: =Data[[#This Row],[Jumlah]]*Data[[#This Row],[Biaya Perkiraan]] -> Rp180 | H21: =Data[[#This Row],[Jumlah]]*Data[[#This Row],[Biaya Sebenarnya]] -> Rp0
B22: Dinding | C22: Panel dinding (jumlah dalam satuan kaki persegi) | D22: 70 | E22: Rp2.00 | G22: =Data[[#This Row],[Jumlah]]*Data[[#This Row],[Biaya Perkiraan]] -> Rp140 | H22: =Data[[#This Row],[Jumlah]]*Data[[#This Row],[Biaya Sebenarnya]] -> Rp0
B23: Jendela | C23: Jendela geser | D23: 2 | E23: Rp120.00 | G23: =Data[[#This Row],[Jumlah]]*Data[[#This Row],[Biaya Perkiraan]] -> Rp240 | H23: =Data[[#This Row],[Jumlah]]*Data[[#This Row],[Biaya Sebenarnya]] -> Rp0
B24: Lainnya | G24: =Data[[#This Row],[Jumlah]]*Data[[#This Row],[Biaya Perkiraan]] -> Rp0 | H24: =Data[[#This Row],[Jumlah]]*Data[[#This Row],[Biaya Sebenarnya]] -> Rp0
B25: Total | E25: =SUBTOTAL(109,Data[Biaya Perkiraan]) -> Rp4,014.00 | F25: =SUBTOTAL(109,Data[Biaya Sebenarnya]) -> Rp0.00 | G25: =SUBTOTAL(109,Data[Total Biaya Perkiraan]) -> Rp5,375.00 | H25: =SUBTOTAL(109,Data[Total Biaya Sebenarnya]) -> Rp0.00
B26: Subtotal | G26: =SUBTOTAL(109,Data[Total Biaya Perkiraan]) -> Rp5,375.00 | H26: =SUBTOTAL(109,Data[Total Biaya Sebenarnya]) -> Rp0.00
B27: Biaya Tidak Terduga - Tambahkan 30% | G27: =G26*0.3 -> Rp1,612.50 | H27: =H26*0.3 -> Rp0.00
B28: Total | G28: =SUM(G26:G27) -> Rp6,987.50 | H28: =SUM(H26:H27) -> Rp0.00
